{"text_format":"1","workbook":"xlsx","n_sheets":5,"sheets":["Contents","Introduction ISERROR","ISERROR","IFERROR-IFNA","ISERROR (2)"],"not_rendered":{"charts":0,"images":2,"macros":1,"external_links":1,"defined_names":0,"comments":0,"pivot_tables":0},"unopened":[],"bounds":{"document_bytes":16777216,"sheet_cells":100000,"rows_first":2000,"rows_last":500,"rows_between":2000,"halvings":0,"cell_chars":16384,"cell_head_chars":4096},"cells_cut":0,"cells_raw":0,"read":"whole","date_system":"1900"}

{"sheet":"Contents","index":0,"n_rows":47,"n_cols":6,"rows_kept":47,"cut":false,"hidden":false,"merged":[]}
["ISERR Function"]
[null,"automateexcel.com/functions/iserr-formula-excel"]
[]
[null,"Table of Contents",null,null,null,"Other Resources"]
[null,"Introduction ISERROR",null,null,null,"Excel Formulas w/Examples"]
[null,"ISERROR",null,null,null,"Excel Boot Camp - Learn Excel inside Excel"]
[null,"IFERROR-IFNA",null,null,null,"Excel Functions & Formulas Tutorial"]
[null,"ISERROR (2)"]
[]
[]
[]
[]
[null,"Excel Boot Camp"]
[null,"  Learn Excel Inside Excel"]
[]
[]
[]
[]
[]
[]
[]
[]
[]
[]
[]
[]
[]
[]
[]
[]
[]
[]
[]
[]
[]
[]
[null,"           Learn Excel inside Excel with our Interactive Tutorial"]
[null,"           Automatically Graded Exercises"]
[null,"           Shortcuts & Best Practices \"Work Smarter, not Harder\""]
[]
[]
[]
[]
[]
[]
[]
[null,"Course Contents"]

{"sheet":"Introduction ISERROR","index":1,"n_rows":15,"n_cols":4,"rows_kept":15,"cut":false,"hidden":false,"merged":[]}
[]
[null,"ISERR",null,"=ISERR(value)"]
[null,"The Excel ISERR function returns TRUE for any error type except the #N/A error."]
[]
[null,"Data","Result","Content_Column A"]
[null,{"$f":"VLOOKUP(E2,F2:I8,2,FALSE)","v":{"$error":"#N/A"}},{"$f":"ISERR(B6)","v":false},{"$f":"IF(_xlfn.ISFORMULA(B6),_xlfn.FORMULATEXT(B6),B6)","v":"=VLOOKUP(E2,F2:I8,2,FALSE)"}]
[null,{"$f":"ABC","v":{"$error":"#NAME?"}},true,{"$f":"IF(_xlfn.ISFORMULA(B7),_xlfn.FORMULATEXT(B7),B7)","v":"=ABC"}]
[null,{"$f":"1/0","v":{"$error":"#DIV/0!"}},true,{"$f":"IF(_xlfn.ISFORMULA(B8),_xlfn.FORMULATEXT(B8),B8)","v":"=1/0"}]
[null,{"$f":"[1]Sheet1!#REF!","v":{"$error":"#REF!"}},true,{"$f":"IF(_xlfn.ISFORMULA(B9),_xlfn.FORMULATEXT(B9),B9)","v":"=Sheet1!#REF!"}]
[null,{"$f":"SQRT(-1)","v":{"$error":"#NUM!"}},true,{"$f":"IF(_xlfn.ISFORMULA(B10),_xlfn.FORMULATEXT(B10),B10)","v":"=SQRT(-1)"}]
[null,{"$f":"1+C5","v":{"$error":"#VALUE!"}},true,{"$f":"IF(_xlfn.ISFORMULA(B11),_xlfn.FORMULATEXT(B11),B11)","v":"=1+C5"}]
[]
[null,"automateexcel.com/functions/iserr-formula-excel"]
[]
[null,"Excel Boot Camp - Learn Excel Inside Excel"]

{"sheet":"ISERROR","index":2,"n_rows":11,"n_cols":3,"rows_kept":11,"cut":false,"hidden":false,"merged":[]}
["Data","Result","Content_Column A"]
[{"$f":"VLOOKUP(D3,E3:H9,2,FALSE)","v":{"$error":"#N/A"}},{"$f":"ISERR(A2)","v":false},{"$f":"IF(_xlfn.ISFORMULA(A2),_xlfn.FORMULATEXT(A2),A2)","v":"=VLOOKUP(D3,E3:H9,2,FALSE)"}]
[{"$f":"1/0","v":{"$error":"#DIV/0!"}},true,{"$f":"IF(_xlfn.ISFORMULA(A3),_xlfn.FORMULATEXT(A3),A3)","v":"=1/0"}]
[{"$f":"ABC","v":{"$error":"#NAME?"}},true,{"$f":"IF(_xlfn.ISFORMULA(A4),_xlfn.FORMULATEXT(A4),A4)","v":"=ABC"}]
[{"$f":"[1]Sheet1!#REF!","v":{"$error":"#REF!"}},true,{"$f":"IF(_xlfn.ISFORMULA(A5),_xlfn.FORMULATEXT(A5),A5)","v":"=Sheet1!#REF!"}]
[{"$f":"SQRT(-1)","v":{"$error":"#NUM!"}},true,{"$f":"IF(_xlfn.ISFORMULA(A6),_xlfn.FORMULATEXT(A6),A6)","v":"=SQRT(-1)"}]
[{"$f":"1+A1","v":{"$error":"#VALUE!"}},true,{"$f":"IF(_xlfn.ISFORMULA(A7),_xlfn.FORMULATEXT(A7),A7)","v":"=1+A1"}]
[]
[null,"automateexcel.com/functions/iserr-formula-excel"]
[]
[null,"Excel Boot Camp - Learn Excel Inside Excel"]

{"sheet":"IFERROR-IFNA","index":3,"n_rows":13,"n_cols":6,"rows_kept":13,"cut":false,"hidden":false,"merged":[[0,4,0,5]]}
["Name","DOB_IFERROR","DOB_IFNA",null,"Table 01"]
["Smith",{"$f":"IFERROR(VLOOKUP(A2,$E$2:$F$7,2,FALSE),\"No Data\")","v":"No Data"},{"$f":"_xlfn.IFNA(VLOOKUP(A2,$E$2:$F$7,2,FALSE),\"No Data\")","v":"No Data"},null,"Name","DOB"]
["John",{"$f":"IFERROR(VLOOKUP(A3,$E$2:$F$7,2,FALSE),\"No Data\")","v":"1985-01-24"},{"$f":"_xlfn.IFNA(VLOOKUP(A3,$E$2:$F$7,2,FALSE),\"No Data\")","v":"1985-01-24"},null,"Jonathon","1987-02-23"]
["Mike","1985-02-05","1985-02-05",null,"Mike","1985-02-05"]
["Serina","No Data","No Data",null,"JOHN","1985-01-24"]
["Jonathon","1987-02-23","1987-02-23",null,"Jeremy","1984-11-21"]
[null,null,null,null,"William","1985-02-21"]
[]
[null,null,"=IFNA(VLOOKUP(A2,$E$2:$F$7,2,FALSE),\"No Data\")"]
[]
[null,"automateexcel.com/functions/iserr-formula-excel"]
[]
[null,"Excel Boot Camp - Learn Excel Inside Excel"]

{"sheet":"ISERROR (2)","index":4,"n_rows":11,"n_cols":3,"rows_kept":11,"cut":false,"hidden":false,"merged":[]}
["Data","Result","Content_Column A"]
[{"$f":"VLOOKUP(D3,E3:H9,2,FALSE)","v":{"$error":"#N/A"}},{"$f":"ISERR(A2)","v":false},{"$f":"IF(_xlfn.ISFORMULA(A2),_xlfn.FORMULATEXT(A2),A2)","v":"=VLOOKUP(D3,E3:H9,2,FALSE)"}]
[{"$f":"1/0","v":{"$error":"#DIV/0!"}},true,{"$f":"IF(_xlfn.ISFORMULA(A3),_xlfn.FORMULATEXT(A3),A3)","v":"=1/0"}]
[{"$f":"ABC","v":{"$error":"#NAME?"}},true,{"$f":"IF(_xlfn.ISFORMULA(A4),_xlfn.FORMULATEXT(A4),A4)","v":"=ABC"}]
[{"$f":"[1]Sheet1!#REF!","v":{"$error":"#REF!"}},true,{"$f":"IF(_xlfn.ISFORMULA(A5),_xlfn.FORMULATEXT(A5),A5)","v":"=Sheet1!#REF!"}]
[{"$f":"SQRT(-1)","v":{"$error":"#NUM!"}},true,{"$f":"IF(_xlfn.ISFORMULA(A6),_xlfn.FORMULATEXT(A6),A6)","v":"=SQRT(-1)"}]
[{"$f":"1+A1","v":{"$error":"#VALUE!"}},true,{"$f":"IF(_xlfn.ISFORMULA(A7),_xlfn.FORMULATEXT(A7),A7)","v":"=1+A1"}]
[]
[null,"automateexcel.com/functions/iserr-formula-excel"]
[]
[null,"Excel Boot Camp - Learn Excel Inside Excel"]